Cogmind - Beta 13 @@@ ROGUE MODE // 2024.03.16 @ 06:23:14 Player: Carpathian Result: Self-destructed Performance ------------- Evolutions (3) 1500 Regions Visited (5) 1000 Robots Destroyed (55) 275 Value Destroyed (2044) 2044 Prototype IDs (2) 40 Alien Tech Used (0) 0 Bonus (248) 248 TOTAL SCORE: 5107 Bonus ------- High Alert Combat Kills 127 Follower Combat Kills 121 Cogmind --------- Core Integrity 289/700 Matter 300/300 Energy 150/150 System Corruption 3% Temperature Cool (18) Movement Core (300) Ox5 Location -7/Storage Parts ------- > --- POWER (2) -------- Micro Nuclear Core > --- PROPULSION (3) --- (None) > --- UTILITY (6) ------ Medium Storage Unit Machine Analyzer Melee Analysis Suite > --- WEAPON (2) ------- (None) > --- INVENTORY (10) --- Improved Light Armor Plating Improved Light Armor Plating Shock Rifle Plasma Cannon Enhanced Autogun Mini Assault Cannon Remote Datajack Mining Laser Peak State ------------ > --- POWER ------------ Ion Engine Micro Nuclear Core > --- PROPULSION ------- Carbon-fiber Leg Titanium Leg Improved Carbon-fiber Leg > --- UTILITY ---------- Medium Storage Unit Machine Analyzer Improved Sensor Array Melee Analysis Suite Medium Reactive Plating > --- WEAPON ----------- Lightning Gun Enhanced Autogun > --- INVENTORY -------- Improved Light Armor Plating Improved Light Armor Plating Shock Rifle Plasma Cannon Mini Assault Cannon Remote Datajack Mining Laser Maul [Rating: 39] Favorites ----------- Power Improved Ion Engine Engine Improved Ion Engine Power Core Light Nuclear Core Propulsion Light Treads Treads Light Treads Leg Improved Aluminum Leg Utility Medium Storage Unit Device Heat Sink Storage Medium Storage Unit Processor Machine Analyzer Hackware Hacking Suite Protection Improved Light Armor Plating Weapon Assault Rifle Energy Gun Beam Rifle Energy Cannon Plasma Cannon Ballistic Gun Assault Rifle Ballistic Cannon Improved Light Cannon Launcher EMP Blaster Impact Weapon Maul Build | -11 -10 -9 -8 -7 -7 ------- Run | Yrd Mat Mat Mat Fac Sto Slots Evolved 6 | . . 2 2 2 . Power 1 | . . . 1 . . Propulsion 1 | . . . . 1 . Utility 4 | . . 2 1 1 . Weapon . | . . . . . . Parts Attached 57 | 6 2 11 24 5 9 Power 8 | 1 . 1 4 . 2 Engine 6 | 1 . . 4 . 1 Core 2 | . . 1 . . 1 Reactor . | . . . . . . Propulsion 14 | 2 2 4 4 2 . Treads 4 | . . 2 2 . . Leg 10 | 2 2 2 2 2 . Wheel . | . . . . . . Hover . | . . . . . . Flight . | . . . . . . Utility 13 | 1 . 3 6 1 2 Device 4 | . . 1 2 1 . Storage 2 | 1 . 1 . . . Processor 2 | . . . 1 . 1 Hackware 1 | . . . 1 . . Protection 4 | . . 1 2 . 1 Artifact . | . . . . . . Weapon 22 | 2 . 3 10 2 5 Energy Gun 5 | . . 1 3 . 1 Energy Cannon 2 | . . . . 1 1 Ballistic Gun 8 | 2 . 1 3 1 1 Ballistic Cannon 3 | . . . 3 . . Launcher 2 | . . 1 1 . . Special Weapon . | . . . . . . Impact Weapon 2 | . . . . . 2 Slashing Weapon . | . . . . . . Piercing Weapon . | . . . . . . Special Melee Weapon . | . . . . . . Unidentified Prototypes 2 | . . . 2 . . Parts Lost 19 | . . . 7 . 12 Power 5 | . . . 3 . 2 Propulsion 4 | . . . 1 . 3 Utility 5 | . . . 1 . 4 Weapon 5 | . . . 2 . 3 Highest Loss Streak 8 | . . . 2 . 8 To Critical Strikes 1 | . . . . . 1 Average Slot Usage (%) 85 | . 84 76 91 84 78 Engine 10 | . 14 6 12 7 4 Core 2 | . . 4 3 . 3 Treads 8 | . . . 17 . . Leg 11 | . 27 21 . 23 22 Device 6 | . . 7 7 7 6 Storage 9 | . 14 11 9 7 7 Processor 6 | . . . 8 7 14 Hackware 3 | . . . 6 7 . Protection 5 | . . 2 8 7 3 Energy Gun 3 | . . 4 5 . . Ballistic Gun 8 | . 28 12 5 6 2 Ballistic Cannon 3 | . . . 5 6 . Launcher 1 | . . 4 1 . . Naked Turns . | . . . . . . Heaviest Build 48 | 14 14 26 38 31 48 Greatest Support 50 | 20 26 40 40 50 50 Greatest Overweight (x) 4 | . 4 . 1 . 1 Average Overweight (x) . | . . . . . . Largest Inventory Capacity 10 | 8 8 10 10 10 10 Average Capacity 9 | 6 8 9 10 10 10 Most Carried 10 | 3 7 8 10 8 10 Average Carried 5 | 1 4 5 5 6 7 Final Capacity 10 | 8 8 10 10 10 10 Final Carried 8 | 3 7 2 8 8 8 Class Distribution -------------------- 76% | Mutant 23% | Scavenger-Mutant Dominant Class ---------------- Mutant | -10/Materials Mutant | -9/Materials Mutant | -8/Materials Mutant | -7/Factory Mutant | -7/Storage Resources | -11 -10 -9 -8 -7 -7 ----------- Run | Yrd Mat Mat Mat Fac Sto Matter Collected 1415 | 219 65 281 425 156 269 Remotely . | . . . . . . Salvage Created 1917 | . 81 673 826 . 337 Parts 107 | . 6 43 50 . 8 Haulers Intercepted 2 | . . 1 . . 1 Recyclers Shooed . | . . . . . . Parts Field Recycled . | . . . . . . Retrieved Matter . | . . . . . . Parts Self-Destructed . | . . . . . . Prevented . | . . . . . . Kills | -11 -10 -9 -8 -7 -7 ------- Run | Yrd Mat Mat Mat Fac Sto Combat Hostiles Destroyed 46 | . 2 15 24 . 5 Melee 1 | . . . . . 1 Guns 20 | . 2 9 9 . . Cannons 8 | . . . 7 . 1 AOE 14 | . . 6 8 . . Classes Destroyed 13 | . 1 4 6 . 2 Builder 3 | . . . 2 . 1 Hauler 2 | . . 1 . . 1 Recycler 1 | . . . 1 . . Mechanic 2 | . . 1 1 . . Watcher 1 | . . . 1 . . Swarmer 6 | . . 3 3 . . Grunt 24 | . 2 9 11 . 2 Brawler 1 | . . . . . 1 Duelist 1 | . . . . . 1 Sentry 9 | . . 3 5 . 1 Specialist 2 | . . . 2 . . Hunter 2 | . . . 2 . . Heavy 1 | . . . 1 . . Best Kill Streak 13 | . 2 7 13 . 4 Combat Bots Only 8 | . 2 6 8 . 3 Max Kills in Single Turn 3 | . 2 3 3 . 1 Gunslinging 1 | . 1 . . . . Exploded 3 | . . 3 2 . . Melee 1 | . . . . . 1 Uniques/NPCs Destroyed . | . . . . . . Combat | -11 -10 -9 -8 -7 -7 -------- Run | Yrd Mat Mat Mat Fac Sto Hostile Shots Fired 486 | . 8 63 176 9 230 Missed 149 | . 1 15 64 6 63 Damage Taken 4485 | . 85 628 1877 18 1877 Core 821 | . . 132 278 . 411 Absorbed by Shields . | . . . . . . Ignored by Resistances 241 | . . . . . 241 Core Remaining (%) 79 | 100 100 67 49 . . Volleys Fired 127 | . 4 37 68 . 18 Largest 2 | . 2 2 2 . 2 Hottest 135 | . 40 89 128 . 135 Shots Fired 235 | . 8 74 124 . 29 Gun 165 | . 8 63 74 . 20 Cannon 45 | . . . 36 . 9 Launcher 25 | . . 11 14 . . Special . | . . . . . . Kinetic 144 | . 8 53 71 . 12 Thermal 58 | . . 10 39 . 9 Explosive 9 | . . . 9 . . Electromagnetic 24 | . . 11 5 . 8 Robot Hit Streak 13 | . 4 11 10 . 13 Robot Miss Streak 6 | . 1 2 6 . 3 Penetration Max . | . . . . . . Secondary Targets 4 | . 1 2 1 . . Max Gunslinging Chain 1 | . 1 1 1 . . Shots Hit Robots 174 | . 6 53 90 . 25 Core Hits 107 | . 4 26 69 . 8 Critical Kills 1 | . . . . . 1 Critical Parts Destroyed 2 | . . . . . 2 Critical Strikes 7 | . . 1 3 . 3 Burn 3 | . . 1 2 . . Blast 1 | . . . 1 . . Smash 3 | . . . . . 3 Melee Attacks 7 | . . . . . 7 Impact 7 | . . . . . 7 Slashing . | . . . . . . Piercing . | . . . . . . Sneak Attacks 2 | . . . . . 2 Combat Hostiles . | . . . . . . Follow-up Attacks . | . . . . . . Damage Inflicted 4500 | . 75 1028 2696 . 701 Guns 1747 | . 75 632 774 . 266 Cannons 718 | . . . 563 . 155 Explosions 1755 | . . 396 1359 . . Melee 277 | . . . . . 277 Ramming 3 | . . . . . 3 Kinetic 1648 | . 75 516 937 . 120 Thermal 935 | . . 185 595 . 155 Explosive 1081 | . . . 1081 . . Electromagnetic 556 | . . 327 83 . 146 Impact 277 | . . . . . 277 Slashing . | . . . . . . Piercing . | . . . . . . Highest Corruption 3 | . . . . . 3 Average Corruption 3 | . . . . . 3 Corruption Purged . | . . . . . . Corruption Blocked . | . . . . . . Effects 6 | . . . . . 6 Message Errors 3 | . . . . . 3 Heat Flow Errors 1 | . . . . . 1 Data Loss (minor) 2 | . . . . . 2 Overload Shots . | . . . . . . Overflow Damage 295 | . . 8 84 . 203 Projectiles . | . . . . . . Explosions 92 | . . 8 84 . . Melee 203 | . . . . . 203 Knockbacks 13 | . . . 12 . 1 Impact 1 | . . . . . 1 Kinetic 12 | . . . 12 . . Secondary . | . . . . . . Self-Inflicted Damage 301 | . . 73 228 . . Shots 13 | . . 5 8 . . Rammed 1 | . . . . . 1 Targets Rammed 2 | . . . . . 2 Kicked 1 | . . . . . 1 Crushed . | . . . . . . Highest Temperature 331 | . 3 36 315 . 331 Average Temperature 96 | . 2 15 106 . 109 Received Heat Transfer 1305 | . 48 201 612 . 444 Effects 9 | . . . 6 . 3 Energy Bleed 2 | . . . 2 . . Interference 7 | . . . 4 . 3 Siege Activations . | . . . . . . Robots Corrupted 1 | . . . . . 1 Combat Hostiles 1 | . . . . . 1 Parts Fried 5 | . . . 1 . 4 Impact Corruptions 4 | . . . . . 4 Robots Melted . | . . . . . . Combat Hostiles . | . . . . . . Parts Melted 3 | . . . 3 . . Heat Transferred 1993 | . . 420 1273 . 300 Parts Sabotaged . | . . . . . . Parts Stolen . | . . . . . . Parts Stripped . | . . . . . . Power Chain Reactions 2 | . . 2 . . . Alert | -11 -10 -9 -8 -7 -7 ------- Run | Yrd Mat Mat Mat Fac Sto Peak Influence 538 | . 72 346 538 221 480 Initial 206 | . . 29 145 206 100 Average 235 | . 40 136 336 214 207 Maximum Alert Level 2 | . . 1 2 1 2 Low Security (%) 41 | 100 100 78 13 . 66 Level 1 43 | . . 21 57 100 24 Level 2 15 | . . . 29 . 8 Level 3 . | . . . . . . Level 4 . | . . . . . . Level 5 . | . . . . . . High Security . | . . . . . . Max Security . | . . . . . . Squads Dispatched 12 | . . 3 6 . 3 Investigation 2 | . . 1 . . 1 Extermination . | . . . . . . Reinforcement 6 | . . 2 3 . 1 Assault . | . . . . . . Garrison 4 | . . . 3 . 1 Intercept . | . . . . . . Searches Triggered . | . . . . . . Construction Impeded . | . . . . . . Haulers Reinforced . | . . . . . . Active Scanning Responses . | . . . . . . Cargo Convoy Interrupts . | . . . . . . Stealth | -11 -10 -9 -8 -7 -7 --------- Run | Yrd Mat Mat Mat Fac Sto Distress Signals 7 | . . 2 4 1 . Communications Jammed . | . . . . . . Distress Signals . | . . . . . . Times Spotted 83 | . 4 22 34 3 20 Peak Tracking Total 10 | . 4 6 10 2 9 Tactical Retreats 6 | . . 1 2 . 3 Traps | -11 -10 -9 -8 -7 -7 ------- Run | Yrd Mat Mat Mat Fac Sto Traps Triggered 2 | . . 1 . . 1 Indirectly . | . . . . . . Trap Hack Attempts . | . . . . . . Triggered . | . . . . . . Disarmed 6 | . . . 6 . . Reprogrammed . | . . . . . . Reused . | . . . . . . Traps Extracted . | . . . . . . Installed . | . . . . . . Triggered . | . . . . . . Machines | -11 -10 -9 -8 -7 -7 ---------- Run | Yrd Mat Mat Mat Fac Sto Machines Disabled 11 | . . 2 5 . 4 Max in Single Turn 2 | . . 1 2 . . Machines Repaired . | . . . . . . Machines Dismantled . | . . . . . . Machines Sabotaged . | . . . . . . Overloaded Fab Kills . | . . . . . . Hacking | -11 -10 -9 -8 -7 -7 --------- Run | Yrd Mat Mat Mat Fac Sto Machines Accessed 8 | . 1 2 3 1 1 Terminals 8 | . 1 2 3 1 1 Fabricators . | . . . . . . Repair Stations . | . . . . . . Recycling Units . | . . . . . . Scanalyzers . | . . . . . . Garrison Access . | . . . . . . Total Hacks 15 | . 1 5 4 2 3 Successful 7 | . 1 1 3 1 1 Failed 8 | . . 4 1 1 2 Catastrophic . | . . . . . . Database Lockouts . | . . . . . . Manual . | . . . . . . Terminals 15 | . 1 5 4 2 3 Fabricators . | . . . . . . Repair Stations . | . . . . . . Recycling Units . | . . . . . . Scanalyzers . | . . . . . . Garrison Access . | . . . . . . Terminal Hacks 7 | . 1 1 3 1 1 Open Door 1 | . . . . . 1 Open DSF 1 | . . . . 1 . Alert Level 1 | . . . 1 . . Disarm Traps 1 | . . . 1 . . Patrol Status 1 | . 1 . . . . Transport Status 1 | . . . 1 . . Zone Layout 1 | . . 1 . . . Fabricator Hacks . | . . . . . . Repair Station Hacks . | . . . . . . Recycling Unit Hacks . | . . . . . . Scanalyzer . | . . . . . . Garrison Access Hacks . | . . . . . . Unauthorized Hacks . | . . . . . . Terminals . | . . . . . . Fabricators . | . . . . . . Repair Stations . | . . . . . . Recycling Units . | . . . . . . Scanalyzers . | . . . . . . Garrison Access . | . . . . . . Data Cores Recovered . | . . . . . . Used . | . . . . . . Hacking Detections 5 | . . 1 2 1 1 Full Trace Events 2 | . . 1 . . 1 Feedback Events . | . . . . . . Feedback Blocked . | . . . . . . Robot Schematics Acquired . | . . . . . . Robots Built . | . . . . . . Authchips . | . . . . . . Time . | . . . . . . Total Robot Build Rating . | . . . . . . Part Schematics Acquired . | . . . . . . Parts Built . | . . . . . . Authchips . | . . . . . . Time . | . . . . . . Total Part Build Rating . | . . . . . . Parts Repaired . | . . . . . . Time . | . . . . . . Parts Recycled . | . . . . . . Recycled Matter . | . . . . . . Retrieved Matter . | . . . . . . Retrieved Components . | . . . . . . Parts Scanalyzed . | . . . . . . Part Schematics Acquired . | . . . . . . Parts Damaged . | . . . . . . Bothacking | -11 -10 -9 -8 -7 -7 ------------ Run | Yrd Mat Mat Mat Fac Sto Used RIF Installer . | . . . . . . Robots Hacked . | . . . . . . Non-combat . | . . . . . . Combat . | . . . . . . Robot Hacks Applied . | . . . . . . Relay Couplers Released . | . . . . . . Fabnet Peak Effective % . | . . . . . . Robots Rewired . | . . . . . . Allies Hacked . | . . . . . . Hacks Repelled . | . . . . . . Allies | -11 -10 -9 -8 -7 -7 -------- Run | Yrd Mat Mat Mat Fac Sto Total Allies 1 | . . . . . 1 Largest Group 1 | . . . . . 1 Highest-Rated Group 100 | . . . . . 100 Highest-Rated Ally 100 | . . . . . 100 Total Orders . | . . . . . . Ally Attacks 14 | . . . . . 14 Total Damage 586 | . . . . . 586 Kills 5 | . . . . . 5 Allies Corrupted . | . . . . . . Allies Melted 1 | . . . . . 1 Intel | -11 -10 -9 -8 -7 -7 ------- Run | Yrd Mat Mat Mat Fac Sto Robot Analysis Total . | . . . . . . Derelict Logs Recovered . | . . . . . . Drone Launches . | . . . . . . Drone Recoveries . | . . . . . . Exploration | -11 -10 -9 -8 -7 -7 ------------- Run | Yrd Mat Mat Mat Fac Sto Turns Passed 3353 | 92 304 663 1610 293 391 Spaces Moved 1703 | 69 218 365 658 214 179 Core 11 | 7 4 . . . . Treads 632 | . . 1 631 . . Legs 1060 | 62 214 364 27 214 179 Wheels . | . . . . . . Hover . | . . . . . . Flight . | . . . . . . Fastest Speed 50 | 50 120 120 125 123 123 Average Speed 137 | 112 122 120 163 123 125 Slowest Speed 250 | 120 250 160 250 123 195 Overloaded Moves . | . . . . . . Propulsion Burnouts . | . . . . . . Robots Hopped . | . . . . . . Cave-ins Triggered . | . . . . . . Exploration Rate (%) 25 | 4 37 32 48 8 22 Regions Visited 5 Branch Regions 1 Pre-discovered Areas . | . . . . . . Known Exits Taken . | . . . . . . Unknown Exits Taken 5 | 1 1 1 1 1 . Scrap Searched . | . . . . . . Spaces Dug . | . . . . . . Terrain Destroyed 33 | . . 9 23 . 1 Melee . | . . . . . . Projectile 2 | . . . 1 . 1 AOE 31 | . . 9 22 . . Terrain Rammed . | . . . . . . Walls Destroyed . | . . . . . . Machines Disabled . | . . . . . . Actions | -11 -10 -9 -8 -7 -7 --------- Run | Yrd Mat Mat Mat Fac Sto Total 2458 | 83 248 516 1068 245 298 Wait 474 | . 15 86 280 16 77 Move 1698 | 68 217 364 657 213 179 Hop . | . . . . . . Pick Up 61 | 9 7 7 27 6 5 Fast Attach 1 | . . . . . 1 Attach 30 | 6 2 2 13 2 5 Detach . | . . . . . . Swap 26 | . . 9 11 3 3 Drop 31 | . 3 10 12 5 1 Fire 127 | . 4 37 68 . 18 Melee 7 | . . . . . 7 Ram 1 | . . . . . 1 Kick 1 | . . . . . 1 Crush . | . . . . . . Escape Stasis . | . . . . . . Rewire 1 | . . 1 . . . Trap . | . . . . . . Miscellaneous . | . . . . . . Route ------- -11/Scrapyard -10/Materials -9/Materials -8/Materials -7/Factory -7/Storage History --------- Turn | Location | Event 2 | -11/Scrapyard | Met Revision 17 44 | -11/Scrapyard | Discovered new exit (range 14) 93 | -11/Scrapyard | Entered Materials 326 | -10/Materials | Build established: Mutant 375 | -10/Materials | Discovered new exit (range 10) 397 | -10/Materials | Entered another Materials area 397 | -9/Materials | Evolved 2 slots: Utility x2 1043 | -9/Materials | Discovered new exit (range 11) 1060 | -9/Materials | Entered another Materials area 1060 | -8/Materials | Evolved 2 slots: Power x1, Utility x1 1664 | -8/Materials | Destroyed 8 combat bots 2067 | -8/Materials | Build established: Scavenger-Mutant 2355 | -8/Materials | Garrison activated, responded to threat 2439 | -8/Materials | Core integrity fell below 50% 2479 | -8/Materials | Discovered new exit (range 12) 2670 | -8/Materials | Entered Factory 2670 | -7/Factory | Evolved 2 slots: Propulsion x1, Utility x1 2937 | -7/Factory | Discovered new exit (range 16) 2963 | -7/Factory | Entered Storage 3015 | -7/Storage | Lost 4 parts (1p2u1w) 3060 | -7/Storage | Met 01-MTF 3123 | -7/Storage | Build established: Mutant 3261 | -7/Storage | Garrison activated, responded to threat 3354 | -7/Storage | Core integrity fell below 50% 3354 | -7/Storage | Self-destructed Last Messages --------------- 03340_ Slug penetrates Wall. 03340_ Critical hit (Destroy). 03343_ Acquired 51 matter. 03343_ Penetrated by Slug. 03343_ Carbon-fiber Leg destroyed. 03344_ Wall collapses. 03344_ Penetrated by Slug. 03345_ Kicked Y-54 Guardian. 03346_ Lightning Gun destroyed. 03346_ Titanium Leg destroyed. 03346_ Slug penetrates Reinforced Barrier. 03347_ Penetrated by Slug. 03348_ Slammed into Y-54 Guardian. 03348_ K-01 Serf collects debris. 03350_ Penetrated by Slug. 03350_ Med. Reactive Plating destroyed. 03352_ Y-54 Guardian destroyed. 03352_ K-01 Serf collects debris. 03353_ Penetrated by Slug. 03354_ Maul destroyed. Map ----- +----------------------------------------------------+ | | | | | | | | | | | | | | | | | ?????????????????????????????????????????????????? | | ?????????????????????????????????????????????????? | | ?????????????????????????????????????????????????? | | ?????????????????????????????????????????????????? | | ?????????????????????????????????????????????????? | | ?????????????????????????????????????????????????? | | ?????????????????????????????????????????########? | | ?????????????????????????????????????????# ?? | | ?????????????????????########????????????# """? | | ?????????????????????#!! !!!#????????????# " ="? | | ?????????????????????#!! !!!#????????????# "!!"? | | ???????????????????"?#!! k !#????????????# "!="? | | ???????????????????T?# !#????????????# "? | | ???????????????????"?### ##????????????# " "" | | ??????????????????????#T #????????????# | | ??????????????????????## * #????????????# | | ??????????#+###+########Y%################+##+#### | | ??????????# % kh@=%! % % | | ??????????+ k ^ gYh=* | | ??????????# "" " =%! | | ???????????## """ " g!#########+#########+#### | | ????????????# """ % "???# #?## # | | ????????????????""" % "#??# ###T # | | ????????????T???" " "#??# ###" "## | | ???????????????? k %= ###??# # # | | ???????????????? ?? / #]] # | | ???????????????####### ######### "T ## [ # | | ?????????????????????# ????????# "" % #] [ [# | | ?????????????????????# ????????# != ######### | | ?????????????????????# ????????#### # # #???????? | | ?????????????????????# ???????????########???????? | | ?????????????????????#???????????????????????????? | | ?????????????????????????????????????????????????? | | ?????????????????????????????????????????????????? | | ?????????????????????????????????????????????????? | | ?????????????????????????????????????????????????? | | ?????????????????????????????????????????????????? | | ?????????????????????????????????????????????????? | | ?????????????????????????????????????????????????? | | ?????????????????????????????????????????????????? | | ?????????????????????????????????????????????????? | | ?????????????????????????????????????????????????? | +----------------------------------------------------+ Best States ------------- Heat Dissipation 44 Energy Generation 23 Energy Capacity 340 Matter Stores 300 Matter Capacity 300 Sight Range 16 Robot Scan Range 15 Terrain Scan Density 10 Armor Coverage 225 Resistance: KI 30 Evasion (%) 55 Melee Accuracy 5 Recoil Reduction 2 Particle Charging 15 Offensive Hacking 10 Item Schematics ----------------- None Robot Schematics ------------------ None Fabricated ------------ Nothing Alien Tech Used ----------------- None Achievements -------------- None Challenges ------------ None Game ------ Seed NovaCoolingBrace Manual? 0 Play Time 00:21:27 Cumulative 16.1 hours Start 2024.03.16 @ 06:02:22 End 2024.03.16 @ 06:23:14 Sessions 1 Manual Loads 0 Difficulty Rogue Special Mode None Game No. 86 Rogue 86 Adventurer 0 Explorer 0 Win Type - Total 0 Types 0/0/0/0/0/0/0/0/0 Lore% 7 Gallery% 21 Achievement% 16 Wizard Run 0 Options --------- Layout 0 ASCII 0 Keyboard 0 Movement Arrows Keybinds 0 Fullscreen 2 Font 24/Cog Map View 76x50 Zoom Use 0% Tactical HUD 1 Map Filters NONE Filters NONE Steam 1 RUN: 7d0143be-0cc3-4f6f-b47d-38b145b29ee8